bitfinex-derivatives/quotes_ETHF0:USTF0_20250213
["timestamp","ask_amount","ask_price","bid_price","bid_amount"]
[1739409129669,0.00547935,2739.3,2739.0,3.2078]
[1739409129868,0.00547935,2739.3,2739.2,0.7301]
[1739409131774,1.675,2739.8,2739.1,1.82533]
[1739409131973,1.675,2739.8,2739.7,0.72997]
[1739409132173,0.42739329,2740.0,2739.9,0.72991]
[1739409132372,2.10239329,2740.0,2739.9,0.72991]
[1739409132674,2.83229329,2740.0,2739.7,0.72995]
[1739409132878,2.83228329,2740.0,2739.8,0.72993]
[1739409133175,2.40489,2740.0,2739.8,0.72993]
[1739409133364,1.675,2740.0,2739.8,0.72993]
[1739409133567,2.40489,2740.0,2739.8,0.72993]
[1739409133873,1.675,2740.0,2739.7,0.00547935]
[1739409134073,1.099,2740.3,2739.7,0.00547935]
[1739409134273,1.673,2740.2,2740.1,0.72984]
[1739409134481,0.5365,2740.3,2739.9,3.15184101]
[1739409134782,0.5365,2740.3,2740.2,0.72983]
[1739409135077,2.10039329,2740.4,2740.1,40.8]
[1739409135289,0.42739329,2740.4,2740.3,0.72981]
[1739409135579,4.8808,2740.6,2740.3,0.72981]
[1739409135990,1.673,2740.6,2740.4,0.72978]
[1739409136282,1.672,2740.7,2740.3,3.2078]
[1739409136582,2.211,2740.8,2740.3,3.2078]
[1739409137479,0.7297,2740.7,2740.4,0.72977]
[1739409137874,0.538,2740.8,2740.5,0.72974]
[1739409138180,2.209,2740.8,2740.6,3.2078]
[1739409138386,2.209,2740.8,2740.7,0.7297]
[1739409138584,1.671,2740.8,2740.7,0.7297]
[1739409139384,1.671,2740.8,2740.6,3.7684]
[1739409140082,0.7297,2740.7,2740.6,3.7684]
[1739409140277,1.671,2740.8,2740.6,3.7684]
[1739409140278,2.40069,2740.8,2740.6,3.7684]
[1739409140677,1.671,2740.8,2740.6,3.2078]
[1739409140878,2.40068,2740.8,2740.6,3.2078]
[1739409141275,1.671,2740.8,2740.6,3.2078]
[1739409141480,2.40069,2740.8,2740.6,3.2078]
[1739409141686,2.40069,2740.8,2740.5,3.15184101]
[1739409141981,2.40069,2740.8,2740.5,3.88158101]
[1739409142279,1.671,2740.8,2740.3,3.7668]
[1739409142484,0.72976,2740.5,2740.3,3.2078]
[1739409142685,1.1128,2740.7,2740.3,3.2078]
[1739409142883,0.72975,2740.6,2740.3,3.9376]
[1739409143185,0.72973,2740.6,2740.3,3.9376]
[1739409143774,1.1128,2740.7,2740.5,0.72975]
[1739409143978,1.1128,2740.7,2740.5,0.72974]
[1739409144178,3.2078,2741.2,2740.3,3.2078]
[1739409144179,0.72964,2741.0,2740.7,0.7297]
[1739409144383,1.664,2740.8,2740.4,0.561]
[1739409144584,2.39369,2740.8,2740.5,0.72975]
[1739409145082,1.664,2740.8,2740.3,3.2078]
[1739409145386,2.39368,2740.8,2740.5,0.72974]
[1739409145581,1.664,2740.8,2740.3,3.2078]
[1739409145783,0.72974,2740.6,2740.3,3.9376]
[1739409146080,0.5737,2740.5,2740.4,0.72978]
[1739409146291,0.5737,2740.5,2740.3,3.2078]
[1739409146485,0.5737,2740.5,2740.3,3.9376]
[1739409146680,0.5737,2740.5,2740.3,3.2078]
[1739409146882,0.5737,2740.5,2740.4,0.72978]
[1739409147487,1.30346,2740.5,2740.3,3.9376]
[1739409147890,0.5737,2740.5,2740.3,3.2078]
[1739409148187,0.5737,2740.5,2740.4,0.72978]
[1739409148890,0.5737,2740.5,2740.3,3.2078]
[1739409149187,1.30346,2740.5,2740.3,3.93759]
[1739409149386,0.5737,2740.5,2740.3,3.2078]
[1739409149782,0.72978,2740.4,2740.3,3.2078]
[1739409150188,1.28528,2740.4,2740.3,3.2078]
[1739409150389,0.5555,2740.4,2740.3,3.2078]
[1739409150591,1.28528,2740.4,2740.3,3.2078]
[1739409150883,0.5555,2740.4,2740.3,3.2078]
[1739409151087,0.5555,2740.4,2740.3,3.93761]
[1739409151487,0.5555,2740.4,2740.3,3.2078]
[1739409151685,1.28528,2740.4,2740.3,3.2078]
[1739409151885,1.85598,2740.4,2740.3,3.2078]
[1739409152092,1.1262,2740.4,2740.3,3.93761]
[1739409152393,0.5555,2740.4,2740.3,3.2078]
[1739409152785,1.28528,2740.4,2740.3,3.2078]
[1739409153693,0.5555,2740.4,2740.3,3.2078]
[1739409154284,1.28528,2740.4,2740.3,3.2078]
[1739409154487,0.5555,2740.4,2740.3,3.2078]
[1739409154688,1.28528,2740.4,2740.3,3.2078]
[1739409155489,0.5737,2740.5,2740.3,3.2078]
[1739409155798,1.654,2740.4,2740.3,3.93761]
[1739409155982,2.38378,2740.4,2740.3,3.2078]
[1739409156392,1.654,2740.4,2740.3,3.2078]
[1739409156693,1.654,2740.4,2740.3,3.93761]
[1739409157696,1.654,2740.4,2740.3,3.2078]
[1739409157896,1.654,2740.4,2740.3,3.93761]
[1739409158195,2.38378,2740.4,2740.3,3.2078]
[1739409160892,1.654,2740.4,2739.9,47.15964101]
[1739409161087,0.72988,2740.1,2739.9,6.35964101]
[1739409161401,0.72988,2740.1,2739.9,7.08955101]
[1739409161689,0.72985,2740.2,2739.9,47.15964101]
[1739409161894,0.564,2740.3,2739.9,47.88953101]
[1739409162295,0.72986,2740.1,2739.9,47.88953101]
[1739409162500,0.564,2740.3,2739.7,0.00547935]
[1739409162691,0.72994,2739.8,2739.7,0.00547935]
[1739409163105,0.72994,2739.8,2739.7,40.80547935]
[1739409163292,0.5835,2739.8,2739.7,41.53544935]
[1739409163500,0.5835,2739.8,2739.7,40.80547935]
[1739409163697,0.5835,2739.8,2739.7,41.53544935]
[1739409164696,0.5835,2739.8,2739.7,0.72997]
[1739409165798,0.5835,2739.8,2739.7,41.52997]
[1739409170704,0.00547935,2740.0,2739.9,0.72991]
[1739409170899,0.00547935,2740.0,2739.9,7.08955101]
[1739409171399,0.00547935,2740.0,2739.9,47.88955101]
[1739409174509,0.00547935,2740.0,2739.9,47.15964101]
[1739409174714,0.73536935,2740.0,2739.9,3.2078]
[1739409175813,0.72996,2739.8,2739.6,3.93779]
[1739409176022,0.72997,2739.7,2739.6,3.2078]
[1739409176199,0.5841,2739.9,2739.7,0.72995]
[1739409176403,0.5841,2739.9,2739.6,44.0078]
[1739409176604,0.72995,2739.8,2739.6,44.73778]
[1739409176804,0.5841,2739.9,2739.6,44.0078]
[1739409176999,0.5841,2739.9,2739.8,0.72994]
[1739409177404,0.5841,2739.9,2739.6,6.35964101]
[1739409177601,1.31404,2739.9,2739.7,0.72997]
[1739409178606,0.00547935,2740.0,2739.9,0.72991]
[1739409179212,0.00547935,2740.0,2739.5,42.63049935]
[1739409179213,9.21327935,2740.0,2739.5,0.00547935]
[1739409179407,0.72999,2739.6,2739.5,0.00547935]
[1739409179613,2.38899,2739.6,2739.5,0.00547935]
[1739409179818,2.38899,2739.6,2739.5,0.00334458]
[1739409180908,2.2447,2739.6,2739.5,0.00334458]
[1739409181114,2.2437,2739.6,2739.5,0.00334458]
[1739409181315,2.97369,2739.6,2739.5,0.00334458]
[1739409182203,2.2437,2739.6,2739.5,0.00334458]
[1739409182609,2.97369,2739.6,2739.5,0.00334458]
[1739409183011,0.5857,2739.6,2739.5,0.00334458]
[1739409183210,1.09467935,2740.0,2739.5,0.00334458]
[1739409183211,0.00547935,2740.0,2739.5,0.00334458]
[1739409183406,1.657,2739.9,2739.7,7.08960101]
[1739409183613,1.66647935,2740.0,2739.7,6.35964101]
[1739409183811,1.66647935,2740.0,2739.6,0.5477]
[1739409184012,0.5797,2739.9,2739.5,0.00334458]
[1739409184211,0.72999,2739.6,2739.5,0.00334458]
[1739409184515,0.5797,2739.9,2739.5,0.00334458]
[1739409184710,0.72998,2739.7,2739.5,0.00334458]
[1739409184911,0.5797,2739.9,2739.5,0.00334458]
[1739409185111,0.72999,2739.7,2739.5,0.00334458]
[1739409185316,1.661,2739.8,2739.5,0.00334458]
[1739409185517,1.29789,2739.6,2739.5,0.00334458]
[1739409186108,1.82506,2739.5,2738.8,3.2078]
[1739409186309,4.97690101,2739.5,2738.8,3.2078]
[1739409186513,0.73018,2738.9,2738.8,44.0078]
[1739409186713,1.664,2738.9,2738.8,44.0078]
[1739409187113,1.664,2738.9,2738.8,3.93801]
[1739409187718,1.664,2738.9,2738.8,3.2078]
[1739409188114,1.664,2738.9,2738.8,3.93801]
[1739409188817,1.664,2738.9,2738.8,7.08985101]
[1739409189714,1.664,2738.9,2738.8,6.35964101]
[1739409190024,1.661,2739.1,2739.0,0.73015]
[1739409190720,1.661,2739.1,2739.0,1.32035]
[1739409190922,2.2401,2739.5,2739.4,0.73005]
[1739409191118,2.2401,2739.5,2739.4,3.93785]
[1739409191418,0.5379,2739.9,2739.4,3.2078]
[1739409191630,1.66,2739.8,2739.5,1.7365]
[1739409191923,1.66,2739.8,2739.7,0.72996]
[1739409192422,1.662,2740.1,2739.9,0.72991]
[1739409193315,1.662,2740.1,2739.8,41.52992]
[1739409193615,0.72991,2739.9,2739.8,40.8]
[1739409194215,8.02164101,2740.1,2739.5,1.7365]
[1739409194522,0.72992,2739.9,2739.6,0.72998]
[1739409194722,4.81384101,2740.1,2739.6,40.8]
[1739409194923,0.72995,2739.8,2739.6,40.8]
[1739409195122,0.72995,2739.8,2739.6,0.72999]
[1739409195333,1.662,2740.1,2739.5,1.7365]
[1739409195615,1.662,2740.1,2739.7,3.2078]
[1739409195824,8.02164101,2740.1,2739.5,0.5902]
[1739409196025,8.02164101,2740.1,2739.1,7.47124101]
[1739409196317,0.73003,2739.5,2739.2,0.7301]
[1739409196525,1.662,2739.5,2739.1,45.1194]
[1739409196821,0.7301,2739.2,2739.1,3.2078]
[1739409197810,1.85646,2739.4,2739.1,3.2078]
[1739409198420,1.1264,2739.4,2739.1,3.2078]
[1739409198730,0.7301,2739.3,2739.1,3.2078]
[1739409199017,0.73009,2739.3,2738.9,0.5518]
[1739409199319,1.85646,2739.4,2739.0,0.73014]
[1739409199524,0.73008,2739.3,2739.0,0.73014]
[1739409199724,0.5712,2739.4,2738.9,0.5518]
[1739409199925,0.5712,2739.4,2739.1,0.7301]
[1739409200123,0.5712,2739.4,2738.9,0.5518]
[1739409200521,0.5712,2739.4,2739.1,3.2078]
[1739409200825,1.657,2739.3,2739.1,6.35964101]
[1739409201022,1.662,2739.6,2739.1,6.35964101]
[1739409201217,0.55937935,2740.0,2739.5,3.2078]
[1739409201419,1.662,2739.9,2739.8,0.72993]
[1739409201621,1.662,2739.9,2739.6,1.6595]
[1739409201622,0.72995,2739.8,2739.6,1.6595]
[1739409201821,2.39192,2739.9,2739.6,1.27818]
[1739409202017,1.662,2739.9,2739.7,0.72996]
[1739409202919,1.662,2739.9,2739.6,0.5482]
[1739409203123,0.72997,2739.7,2739.5,3.2078]
[1739409203426,0.72999,2739.6,2739.5,3.2078]
[1739409203621,1.30419,2739.6,2739.5,3.2078]
[1739409204029,4.46200101,2739.8,2739.5,3.93782]
[1739409204216,1.31016,2739.8,2739.5,3.93782]
[1739409204529,0.72999,2739.7,2739.5,3.2078]
[1739409204828,0.5802,2739.8,2739.5,3.2078]
[1739409205026,0.72998,2739.7,2739.5,3.2078]
[1739409205931,1.31015,2739.8,2739.5,3.93781]
[1739409206223,2.2103,2739.9,2739.5,3.2078]
[1739409206425,1.667,2739.8,2739.6,0.72999]
[1739409206624,1.667,2739.8,2739.5,3.2078]
[1739409206822,0.72997,2739.7,2739.5,3.2078]
[1739409207023,0.72999,2739.6,2739.5,3.2078]
[1739409207223,1.667,2739.8,2739.5,3.2078]
[1739409207522,0.72999,2739.6,2739.5,3.2078]
[1739409208417,0.72999,2739.6,2738.9,41.3693]
[1739409208418,0.73013,2739.1,2738.9,45.30728]
[1739409208625,1.664,2739.2,2738.9,5.04938]
[1739409208832,2.39412,2739.2,2738.9,5.04938]
[1739409209826,1.664,2739.2,2738.9,4.3192]
[1739409210029,1.664,2739.2,2739.0,0.73015]
[1739409210230,1.664,2739.2,2738.9,4.3192]
[1739409210432,1.664,2739.2,2738.9,3.7499]
[1739409211131,1.664,2739.2,2739.1,0.73013]
[1739409212322,0.5647,2739.4,2738.9,3.7499]
[1739409212532,1.663,2739.4,2739.3,0.73007]
[1739409212733,2.39305,2739.4,2739.2,3.93788]
[1739409212936,0.73007,2739.3,2739.2,3.2078]
[1739409213434,1.663,2739.4,2738.9,3.2078]
[1739409213636,1.31492,2739.2,2738.9,3.93797]
[1739409213928,1.31492,2739.2,2739.0,0.73015]
[1739409214335,0.5848,2739.2,2739.0,0.73015]
[1739409214636,0.5848,2739.2,2739.0,0.73013]
[1739409216838,0.5848,2739.2,2739.0,0.73014]
[1739409217036,0.5848,2739.2,2739.1,0.73013]
[1739409217237,0.5848,2739.2,2739.0,0.73014]
[1739409217637,0.5848,2739.2,2738.9,3.93797]
[1739409217839,0.73013,2739.1,2738.9,44.0078]
[1739409218039,0.73015,2739.0,2738.9,3.2078]
[1739409218243,0.5848,2739.2,2738.9,3.2078]
[1739409218244,1.31104,2739.1,2738.9,3.2078]
[1739409218647,0.5809,2739.1,2738.9,3.93797]
[1739409219245,1.31104,2739.1,2738.9,3.2078]
[1739409219445,0.73015,2739.0,2738.9,3.2078]
[1739409219647,0.5809,2739.1,2738.9,3.2078]
[1739409219845,1.31104,2739.1,2738.9,3.2078]
[1739409220250,0.5809,2739.1,2738.9,3.93796]
[1739409220652,0.73015,2739.0,2738.9,3.2078]
[1739409221255,0.5809,2739.1,2738.9,3.2078]
[1739409221755,0.5809,2739.1,2738.9,3.93796]
[1739409222053,1.31104,2739.1,2738.9,3.2078]
[1739409222549,0.73023,2738.7,2738.6,0.00547935]
[1739409222752,2.38523,2738.7,2738.6,0.00547935]
[1739409223651,2.38523,2738.7,2738.6,0.00330285]
[1739409225050,1.655,2738.7,2738.0,0.5593]
[1739409225243,0.73045,2737.9,2737.8,3.2078]
[1739409225448,2.38845,2737.9,2737.8,3.2078]
[1739409226157,1.658,2737.9,2737.8,3.2078]
[1739409226473,2.38845,2737.9,2737.8,3.2078]
[1739409226849,1.658,2737.9,2737.8,3.2078]
[1739409227550,2.38845,2737.9,2737.8,3.2078]
[1739409228649,1.658,2737.9,2737.8,3.2078]
[1739409229951,2.38845,2737.9,2737.8,3.2078]
[1739409231161,0.7305,2737.7,2737.6,0.54457935]
[1739409231553,1.658,2737.9,2737.6,0.54457935]
[1739409231753,0.7305,2737.7,2737.6,0.54457935]
[1739409232358,0.73049,2737.8,2737.6,0.54457935]
[1739409232658,2.38846,2737.9,2737.6,1.27508935]
[1739409232860,0.73048,2737.8,2737.6,1.27508935]
[1739409233459,0.73048,2737.8,2737.6,0.54457935]
[1739409233657,0.7305,2737.7,2737.6,0.54457935]
[1739409234060,0.7305,2737.7,2737.6,0.00547935]
[1739409236361,2.3855,2737.7,2737.6,0.00547935]
[1739409240562,0.5508,2738.0,2737.6,3.21327935]
[1739409240859,1.655,2737.9,2737.8,0.73046]
[1739409241965,1.655,2737.9,2737.7,1.87739]
[1739409242165,1.655,2737.9,2737.7,1.87738]
[1739409242767,1.655,2737.9,2737.8,0.73047]
[1739409243262,0.73588935,2738.1,2737.8,0.73047]
[1739409243464,0.00547935,2738.1,2738.0,0.73042]
[1739409243665,1.66047935,2738.1,2738.0,0.73042]
[1739409245165,1.66047935,2738.1,2737.6,0.00547935]
[1739409245366,0.7305,2737.7,2737.6,0.00547935]
[1739409249574,3.88234101,2737.7,2737.6,0.00547935]
[1739409252776,6.0,2737.7,2737.1,3.2078]
[1739409252978,0.73059,2737.4,2737.1,3.2078]
[1739409253473,0.73059,2737.4,2737.1,3.93846]
[1739409253875,0.7306,2737.4,2737.1,3.2078]
[1739409254476,0.7306,2737.4,2737.1,3.93846]
[1739409254873,1.655,2737.3,2737.2,0.73063]
[1739409255078,1.655,2737.3,2737.2,1.80503]
[1739409255281,0.73049,2737.8,2737.5,0.73054]
[1739409255471,1.655,2737.7,2737.5,0.73054]
[1739409256378,1.655,2737.7,2737.4,3.2078]
[1739409256576,1.655,2737.7,2737.4,3.93836]
[1739409257468,0.73049,2737.8,2737.5,0.73054]
[1739409257678,0.73049,2737.8,2737.4,3.2078]
[1739409257679,2.38552,2737.7,2737.4,3.93836]
[1739409258080,1.655,2737.7,2737.5,0.73055]
[1739409258775,1.655,2737.6,2737.4,3.2078]
[1739409258977,1.655,2737.6,2737.5,0.73055]
[1739409260980,0.73048,2737.8,2737.7,0.7305]
[1739409261178,0.00547935,2738.1,2737.7,3.2078]
[1739409261475,0.00547935,2738.1,2738.0,3.93822]
[1739409261681,1.66047935,2738.1,2738.0,3.93822]
[1739409262382,1.66047935,2738.1,2738.0,3.2078]
[1739409262582,1.66047935,2738.1,2738.0,3.93822]
[1739409262777,0.00547935,2738.1,2738.0,3.93822]
[1739409263574,0.73586935,2738.1,2738.0,3.2078]
[1739409263784,3.15732036,2738.1,2737.5,0.5395]
[1739409263984,0.73053,2737.6,2737.5,1.27005]
[1739409264186,1.655,2737.7,2737.5,0.5395]
[1739409264478,0.73053,2737.6,2737.5,0.5395]
[1739409265479,1.655,2737.7,2737.3,3.2078]
[1739409265880,0.73054,2737.6,2737.3,3.9384]
[1739409267080,1.655,2737.7,2737.3,3.2078]
[1739409267987,0.73053,2737.6,2737.3,3.2078]
[1739409268391,2.2205,2737.7,2737.3,3.2078]
[1739409268687,0.73055,2737.6,2737.3,3.2078]
[1739409268883,0.73058,2737.5,2737.3,3.2078]
[1739409269082,0.5515,2737.4,2737.3,3.2078]
[1739409269587,1.28208,2737.4,2737.3,3.2078]
[1739409269788,0.5515,2737.4,2737.1,1.1107]
[1739409269987,0.73063,2737.3,2737.2,3.2078]
[1739409270187,0.5515,2737.4,2737.2,3.2078]
[1739409270390,1.2821,2737.4,2737.2,3.2078]
[1739409270589,1.28209,2737.4,2737.2,3.2078]
[1739409270788,1.28209,2737.4,2737.2,1.90931083]
[1739409271193,1.28209,2737.4,2737.2,2.63994083]
[1739409271194,0.5515,2737.4,2737.2,2.63994083]
[1739409272894,1.28208,2737.4,2737.2,1.90931083]
[1739409273094,0.73061,2737.3,2737.2,1.90931083]
[1739409273793,0.5515,2737.4,2737.1,1.1107]
[1739409274098,0.73063,2737.2,2737.1,1.1107]
[1739409274293,2.38563,2737.2,2737.1,1.1107]
[1739409274881,2.38563,2737.2,2737.1,0.5683]
[1739409275089,0.73066,2737.1,2737.0,0.00547935]
[1739409275290,1.31636,2737.1,2737.0,0.00547935]
[1739409276310,0.5857,2737.1,2737.0,0.00547935]
[1739409277194,1.31636,2737.1,2737.0,0.00547935]
[1739409278594,4.80684101,2737.2,2737.0,0.00547935]
[1739409278800,1.655,2737.2,2737.0,0.73615935]
[1739409279197,1.655,2737.2,2737.1,0.5678]
[1739409279497,2.38563,2737.2,2737.1,0.5678]
[1739409280802,0.73066,2737.1,2737.0,0.00547935]
[1739409281700,1.27756,2737.1,2737.0,0.00547935]
[1739409285007,1.27756,2737.1,2737.0,0.00341752]
[1739409286307,0.73078,2736.7,2736.5,3.7521]
[1739409286609,2.25,2736.6,2736.5,3.7521]
[1739409286806,2.25,2736.6,2736.5,3.2078]
[1739409287205,2.25,2736.6,2736.5,3.93862]
[1739409287607,2.25,2736.6,2736.5,3.2078]
[1739409288306,2.25,2736.6,2736.5,3.93862]
[1739409288508,0.5481,2737.0,2736.5,3.93862]
[1739409288707,1.655,2736.9,2736.5,3.2078]
[1739409289008,0.5481,2737.0,2736.5,3.2078]
[1739409289211,1.655,2736.9,2736.7,0.73074]
[1739409289419,2.38571,2736.9,2736.7,0.73074]
[1739409289611,0.73078,2736.7,2736.5,3.93861]
[1739409291508,1.655,2736.9,2736.5,3.2078]
[1739409291709,0.73078,2736.7,2736.5,3.93861]
[1739409292313,1.655,2736.9,2736.5,3.93861]
[1739409292314,1.655,2736.9,2736.5,3.2078]
[1739409292615,0.73077,2736.7,2736.5,3.93861]
[1739409293511,1.655,2736.9,2736.5,3.93861]
[1739409293812,0.73076,2736.8,2736.5,3.93861]
[1739409294011,0.73076,2736.8,2736.6,0.73079]
[1739409294715,1.655,2736.9,2736.5,3.2078]
[1739409294907,1.655,2736.9,2736.7,0.73076]
[1739409295311,1.655,2736.9,2736.5,3.2078]
[1739409295614,0.73076,2736.8,2736.6,0.73079]
[1739409296219,0.73074,2736.8,2736.6,0.73079]
[1739409297616,2.38573,2736.9,2736.6,0.73079]
[1739409297915,0.73075,2736.8,2736.6,0.73079]
[1739409298118,1.655,2736.9,2736.5,3.2078]
[1739409298414,1.655,2736.9,2736.8,0.73074]
[1739409298621,1.655,2736.9,2736.5,3.2078]
[1739409298622,2.38572,2736.9,2736.7,0.73075]
[1739409299319,2.38572,2736.9,2736.6,0.5876]
[1739409299513,0.73075,2736.8,2736.6,1.31838]
[1739409301220,4.80684101,2736.9,2736.5,3.2078]
[1739409301423,1.655,2736.9,2736.5,3.2078]
[1739409301720,0.73079,2736.6,2736.5,3.2078]
[1739409302314,0.73079,2736.6,2736.3,0.00547935]
[1739409302315,0.73085,2736.4,2736.3,0.00547935]
[1739409302629,1.655,2736.4,2735.9,0.5375]
[1739409302917,3.2078,2736.3,2735.9,0.5375]
[1739409303226,3.2078,2736.3,2736.2,0.7309]
[1739409303519,4.8628,2736.3,2736.2,0.7309]
[1739409304324,0.00547935,2736.5,2736.4,0.73085]
[1739409307823,0.00547935,2736.5,2736.0,1.14615292]
[1739409308023,3.15184101,2736.4,2736.0,1.14615292]
[1739409308427,3.15184101,2736.4,2736.3,0.73087]
[1739409309226,3.15184101,2736.4,2736.0,1.14615292]
[1739409309526,1.11637935,2736.5,2736.4,0.73085]
[1739409309726,0.55767935,2736.5,2736.4,0.73085]
[1739409310127,2.21267935,2736.5,2736.4,0.73085]
[1739409310336,0.00547935,2736.5,2736.4,0.73085]
[1739409310519,0.5936,2737.1,2737.0,0.73069]
[1739409310725,1.655,2737.1,2737.0,0.73069]
[1739409310925,1.655,2737.1,2736.7,4.3498]
[1739409311128,1.3243,2737.0,2736.7,0.5744]
[1739409311327,0.73075,2736.8,2736.4,3.93864]
[1739409311532,0.5783,2736.7,2736.4,3.2078]
[1739409311732,1.655,2736.6,2736.4,3.2078]
[1739409311938,1.655,2736.6,2736.5,0.73082]
[1739409312623,1.655,2736.6,2736.4,3.2078]
[1739409312937,1.655,2736.6,2736.4,3.93865]
[1739409313523,1.655,2736.6,2736.1,0.5744]
[1739409313524,4.8628,2736.6,2736.1,0.5744]
[1739409313731,0.73089,2736.3,2736.1,0.5744]
[1739409313932,3.2078,2736.3,2736.0,0.00365292]
[1739409314129,1.31462,2736.2,2736.0,0.00365292]
[1739409314334,1.655,2736.1,2736.0,0.00365292]
[1739409314733,1.655,2736.1,2736.0,0.00225067]
[1739409315134,0.5837,2736.2,2736.1,0.73093]
[1739409315332,3.2078,2736.3,2736.0,0.00225067]
[1739409315533,3.2078,2736.3,2736.2,0.7309]
[1739409315839,4.8628,2736.3,2736.0,0.00225067]
[1739409316026,8.01464101,2736.3,2736.0,0.00225067]
[1739409316232,0.73093,2736.1,2736.0,0.00225067]
[1739409316535,4.8628,2736.3,2736.0,0.00225067]
[1739409316833,4.8628,2736.3,2736.1,0.73092]
[1739409317028,4.8628,2736.3,2736.2,0.7309]
[1739409317225,4.8628,2736.3,2736.0,0.00225067]
[1739409317429,4.8628,2736.3,2736.1,0.73093]
[1739409317633,4.8628,2736.3,2736.0,0.00225067]
[1739409317634,4.8628,2736.3,2736.0,0.73318067]
[1739409317936,4.8628,2736.3,2736.0,0.00225067]
[1739409318137,4.8628,2736.3,2736.2,0.7309]
[1739409318435,4.8628,2736.3,2736.0,0.00225067]
[1739409318633,4.8628,2736.3,2736.0,0.73319067]
[1739409318835,4.8628,2736.3,2736.0,0.00225067]
[1739409319138,4.8628,2736.3,2736.1,0.73091]
[1739409319636,5.59369,2736.3,2736.0,0.00225067]
[1739409319836,4.8628,2736.3,2736.0,0.00225067]
[1739409320031,4.8628,2736.3,2736.1,0.73093]
[1739409320231,4.8628,2736.3,2736.2,0.7309]
[1739409320432,0.5471,2736.5,2736.4,0.73085]
[1739409320632,2.2021,2736.5,2736.4,0.73085]
[1739409320833,1.655,2736.5,2736.4,0.73085]
[1739409322236,0.5477,2736.8,2736.6,0.73079]
[1739409322535,0.5477,2736.8,2736.7,0.73077]
[1739409322740,1.655,2736.8,2736.7,0.73077]
[1739409323637,0.00547935,2736.9,2736.8,0.73074]
[1739409323833,1.66047935,2736.9,2736.8,0.73074]
[1739409324739,1.66047935,2736.9,2736.8,0.45040266]
[1739409325039,0.00547935,2736.9,2736.8,0.45040266]
[1739409325243,0.00547935,2736.9,2736.8,3.65820266]
[1739409325742,0.00547935,2736.9,2736.8,4.22990266]
[1739409328138,1.655,2737.3,2736.8,9.7795]
[1739409328334,1.655,2737.4,2737.3,0.73061]
[1739409328537,1.655,2737.4,2737.3,0.536]
[1739409328740,3.2078,2738.1,2737.3,5.51435101]
[1739409329040,3.2078,2738.1,2737.6,3.15184101]
[1739409329344,1.655,2738.0,2737.7,0.5646]
[1739409329842,1.655,2738.0,2737.9,3.93825]
[1739409330535,1.655,2738.0,2737.9,0.73045]
[1739409330936,1.655,2738.0,2737.7,0.5646]
[1739409331144,0.73045,2737.9,2737.6,3.94378935]
[1739409331332,0.5887,2737.8,2737.6,3.21327935]
[1739409331537,0.5887,2737.8,2737.7,0.7305]
[1739409332543,2.2437,2737.8,2737.7,0.7305]
[1739409333044,1.655,2737.8,2737.7,0.7305]
[1739409333337,0.00547935,2738.1,2737.7,0.7305]
[1739409333338,0.00547935,2738.1,2738.0,0.73042]
[1739409333543,1.65947935,2738.1,2738.0,0.73042]
[1739409333946,0.00547935,2738.1,2738.0,3.93822]
[1739409337148,1.654,2738.6,2738.2,1.82591]
[1739409337444,2.2066,2738.9,2738.8,0.73021]
[1739409337646,2.93678,2738.9,2738.7,0.73022]
[1739409337853,3.93784,2739.5,2738.8,3.2078]
[1739409338045,3.93784,2739.5,2738.9,3.15184101]
[1739409338046,3.2078,2739.5,2738.9,3.15184101]
[1739409338345,1.65947935,2739.5,2739.4,0.73003]
[1739409338736,1.65947935,2739.5,2739.3,3.779]
[1739409339143,0.73007,2739.3,2739.2,0.00547935]
[1739409339741,1.65947935,2739.5,2739.2,0.00547935]
[1739409340045,0.73005,2739.4,2739.2,0.00547935]
[1739409340339,1.65947935,2739.5,2739.2,0.00547935]
[1739409340340,2.38951935,2739.5,2739.2,0.00547935]
[1739409340753,1.65947935,2739.5,2739.2,0.00547935]
[1739409341243,1.654,2739.4,2739.2,0.73556935]
[1739409341443,1.654,2739.4,2739.2,0.00547935]
[1739409341847,3.15184101,2739.3,2739.2,0.00547935]
[1739409342144,4.28124101,2739.3,2739.2,0.00547935]
[1739409342739,0.5886,2739.3,2739.2,0.00547935]
[1739409343543,1.31867,2739.3,2739.2,0.00547935]
[1739409343742,4.47051101,2739.3,2739.2,0.00547935]
[1739409343942,9.74044101,2739.3,2738.2,0.5452]
[1739409344143,0.73019,2738.9,2738.5,3.93807]
[1739409344340,2.1951,2738.8,2738.5,3.93807]
[1739409344549,5.4029,2738.8,2738.3,0.572]
[1739409344750,0.73026,2738.6,2738.3,1.30233]
[1739409345047,2.1951,2738.8,2738.3,0.572]
[1739409345245,2.92532,2738.8,2738.4,0.73029]
[1739409345446,2.92532,2738.8,2738.4,0.7303]
[1739409345847,2.92532,2738.8,2738.5,0.73029]
[1739409346049,2.1951,2738.8,2738.4,3.2078]
[1739409346248,2.1951,2738.8,2738.6,0.73025]
[1739409347149,0.5865,2738.7,2738.6,0.73025]
[1739409348252,0.5865,2738.7,2738.5,0.73027]
[1739409348845,0.5865,2738.7,2738.4,3.2078]
[1739409349150,0.5865,2738.7,2738.5,0.73029]
[1739409349346,0.5865,2738.7,2738.6,0.73026]
[1739409349551,0.5865,2738.7,2738.4,3.2078]
[1739409349948,0.5865,2738.7,2738.4,3.93811]
[1739409350144,0.5865,2738.7,2738.3,0.572]
[1739409350344,0.5865,2738.7,2738.4,3.93811]